bitfinex-derivatives/quotes_BTCF0:USTF0_20251023
["timestamp","ask_amount","ask_price","bid_price","bid_amount"]
[1761239885696,0.13488627,110080.0,110070.0,0.53187275]
[1761239886906,0.04406177,110080.0,110070.0,0.53187275]
[1761239887409,0.02199177,110080.0,110070.0,0.53187275]
[1761239887601,1.77e-06,110080.0,110070.0,0.53187275]
[1761239889011,1.77e-06,110080.0,110070.0,0.49927855]
[1761239890207,1.77e-06,110080.0,110070.0,0.53187275]
[1761239890409,1.77e-06,110080.0,110070.0,0.87666604]
[1761239891502,1.77e-06,110080.0,110070.0,0.53427275]
[1761239891902,1.77e-06,110080.0,110070.0,1.25222039]
[1761239892108,1.77e-06,110080.0,110070.0,1.3010729]
[1761239892497,0.03748345,110110.0,110100.0,0.0908083]
[1761239892701,0.08154345,110110.0,110100.0,0.81852159]
[1761239892898,0.17234355,110110.0,110100.0,0.4761283]
[1761239893806,0.15027375,110110.0,110100.0,0.4761283]
[1761239894010,0.05947345,110110.0,110100.0,0.4761283]
[1761239894197,0.0048,110110.0,110100.0,0.4761283]
[1761239894402,0.0048,110110.0,110100.0,0.81852159]
[1761239896008,0.0048,110110.0,110100.0,0.4761283]
[1761239896712,0.0048,110110.0,110100.0,0.63943799]
[1761239897412,0.00380149,110110.0,110100.0,0.82716513]
[1761239897613,0.00380149,110110.0,110100.0,0.80274768]
[1761239897914,0.17246777,110130.0,110100.0,0.80274768]
[1761239897915,0.02888196,110130.0,110120.0,0.149872]
[1761239898115,0.02888196,110130.0,110120.0,0.63694169]
[1761239898315,0.05087196,110130.0,110120.0,0.63694169]
[1761239898614,0.07294196,110130.0,110120.0,0.63694169]
[1761239898916,0.07294196,110130.0,110120.0,0.32223783]
[1761239899213,0.07294196,110130.0,110120.0,0.64599783]
[1761239900121,0.07294196,110130.0,110120.0,0.64699783]
[1761239900509,0.07294196,110130.0,110120.0,0.39289614]
[1761239900510,0.16372556,110130.0,110120.0,0.39289614]
[1761239900709,0.34058525,110130.0,110120.0,0.48364804]
[1761239901010,0.17727556,110130.0,110120.0,0.48364814]
[1761239901318,0.17727556,110130.0,110120.0,0.64695783]
[1761239901319,0.07294196,110130.0,110120.0,0.64695783]
[1761239901617,0.02888196,110130.0,110120.0,0.64695783]
[1761239902006,0.04900022,110140.0,110120.0,0.64695783]
[1761239902211,0.07099022,110140.0,110130.0,0.31317329]
[1761239902413,0.04900022,110140.0,110130.0,0.31557329]
[1761239902923,0.06533363,110140.0,110130.0,0.31557329]
[1761239903420,0.08732363,110140.0,110130.0,0.31557329]
[1761239903920,0.08732363,110140.0,110130.0,0.31657329]
[1761239904219,0.08732363,110140.0,110130.0,0.31557329]
[1761239904418,0.04884596,110140.0,110130.0,0.31757329]
[1761239905717,0.04884596,110140.0,110130.0,0.32057329]
[1761239907022,0.07134596,110140.0,110130.0,0.32057329]
[1761239907524,0.04884596,110140.0,110130.0,0.32057329]
[1761239908225,0.16069126,110140.0,110130.0,0.32057329]
[1761239908616,0.18290126,110140.0,110130.0,0.32057329]
[1761239908812,0.1340553,110140.0,110130.0,0.4808636]
[1761239909015,0.20418073,110150.0,110140.0,0.01346]
[1761239909220,0.20418073,110150.0,110140.0,0.22134969]
[1761239909728,0.20418073,110150.0,110140.0,0.31452499]
[1761239909927,0.38028042,110150.0,110140.0,0.04698]
[1761239910119,0.1516371,110150.0,110140.0,0.04698]
[1761239910526,0.1516371,110150.0,110140.0,0.04798]
[1761239910728,0.21675266,110150.0,110140.0,0.04798]
[1761239911028,0.21675266,110150.0,110140.0,0.06044]
[1761239911619,0.21675266,110150.0,110140.0,0.1512155]
[1761239911823,0.21675266,110150.0,110140.0,0.1512154]
[1761239912426,0.20396266,110150.0,110140.0,0.1542154]
[1761239912630,0.52752266,110150.0,110140.0,0.31852509]
[1761239912835,0.5112462,110150.0,110140.0,0.31852509]
[1761239913826,0.4624071,110150.0,110140.0,0.31852509]
[1761239915530,0.4623671,110150.0,110140.0,0.31852509]
[1761239916436,0.0048,110150.0,110140.0,0.31852509]
[1761239917831,0.31494689,110150.0,110140.0,0.05098]
[1761239918033,0.04808,110150.0,110140.0,0.1552154]
[1761239918240,0.0048,110150.0,110140.0,0.31852509]
[1761239918738,0.4710607,110170.0,110160.0,0.1353389]
[1761239918928,0.4710607,110170.0,110160.0,0.1377389]
[1761239919238,0.1475807,110170.0,110160.0,0.31450859]
[1761239919433,0.1475807,110170.0,110160.0,0.22374969]
[1761239919434,0.4710607,110170.0,110160.0,0.22374969]
[1761239919630,0.4710607,110170.0,110160.0,0.1511989]
[1761239920138,0.1475807,110170.0,110160.0,0.1521989]
[1761239920846,0.1475807,110170.0,110160.0,0.16560451]
[1761239921841,0.1475807,110170.0,110160.0,0.07484561]
[1761239922032,0.1475807,110170.0,110160.0,0.16560441]
[1761239922638,0.4710207,110170.0,110160.0,0.06138561]
[1761239922837,0.63433039,110170.0,110160.0,0.06138561]
[1761239923240,0.63433039,110170.0,110160.0,0.15214441]
[1761239923435,0.63433039,110170.0,110160.0,0.06138561]
[1761239924139,1.03433039,110170.0,110160.0,0.01680561]
[1761239924745,1.03433039,110170.0,110160.0,0.06138561]
[1761239925134,1.03433039,110170.0,110160.0,0.15214471]
[1761239926036,0.04328,110170.0,110160.0,0.3289144]
[1761239926334,0.36668,110170.0,110160.0,0.3289144]
[1761239927038,0.04328,110170.0,110160.0,0.3289144]
[1761239927430,0.1475771,110180.0,110170.0,0.1487907]
[1761239927638,0.1475771,110180.0,110170.0,0.14873631]
[1761239928338,0.1475771,110180.0,110170.0,0.15113631]
[1761239928539,0.1475771,110180.0,110170.0,0.16000933]
[1761239928942,0.1475771,110180.0,110170.0,0.16100933]
[1761239929443,0.1475771,110180.0,110170.0,0.17446933]
[1761239929744,0.1475771,110180.0,110170.0,0.33777902]
[1761239931046,0.1475771,110180.0,110170.0,0.17446933]
[1761239931847,0.1340271,110180.0,110170.0,0.33777902]
[1761239933034,0.1340271,110180.0,110170.0,0.17446933]
[1761239933238,0.1340271,110180.0,110170.0,0.33777902]
[1761239933438,0.1474471,110180.0,110170.0,0.17446933]
[1761239933639,0.1474471,110180.0,110170.0,0.07025863]
[1761239933847,0.31075679,110180.0,110170.0,0.07025863]
[1761239934245,0.31075679,110180.0,110170.0,0.04810863]
[1761239934547,0.31075679,110180.0,110170.0,0.02567863]
[1761239934940,0.34328632,110180.0,110170.0,0.02567863]
[1761239935141,0.34328632,110180.0,110170.0,0.01680561]
[1761239939254,0.17997663,110180.0,110170.0,0.01680561]
[1761239939448,0.34328632,110180.0,110170.0,0.01680561]
[1761239940852,0.66652632,110180.0,110170.0,0.01680561]
[1761239941451,0.17997663,110180.0,110170.0,0.3268561]
[1761239941754,0.16655663,110180.0,110170.0,0.3268561]
[1761239942454,0.05359953,110180.0,110170.0,0.3268561]
[1761239942849,0.19318103,110180.0,110170.0,0.3268561]
[1761239943050,0.08136863,110180.0,110170.0,0.3268561]
[1761239943253,0.0488391,110180.0,110170.0,0.3268561]
[1761239943756,0.0488391,110180.0,110170.0,0.3298561]
[1761239944154,0.0488391,110180.0,110170.0,0.16654641]
[1761239944357,0.0488391,110180.0,110170.0,0.3298561]
[1761239944558,0.0488391,110180.0,110170.0,0.3308561]
[1761239944753,0.0488391,110180.0,110170.0,0.33064322]
[1761239945358,0.0488391,110180.0,110170.0,0.49374003]
[1761239945954,0.08147216,110180.0,110170.0,0.49374003]
[1761239946358,0.12492216,110180.0,110170.0,0.16754641]
[1761239946658,0.0922891,110180.0,110170.0,0.33064322]
[1761239947058,0.0703091,110180.0,110170.0,0.33064322]
[1761239947258,0.08147307,110180.0,110170.0,0.49374003]
[1761239947455,0.0970891,110190.0,110180.0,0.1467326]
[1761239947756,0.0970891,110190.0,110180.0,0.48633183]
[1761239948160,0.0751091,110190.0,110180.0,0.48633183]
[1761239948349,0.0536391,110190.0,110180.0,0.48633183]
[1761239948548,0.0536391,110190.0,110180.0,0.48873183]
[1761239948749,0.0536391,110190.0,110180.0,0.48973183]
[1761239949359,0.0536391,110190.0,110180.0,0.49273183]
[1761239950958,0.0536391,110190.0,110180.0,0.56470877]
[1761239951660,0.1389842,110190.0,110180.0,0.56470877]
[1761239951960,0.1524042,110190.0,110180.0,0.32963482]
[1761239952860,0.3399599,110190.0,110180.0,0.06308561]
[1761239953067,0.36434011,110190.0,110180.0,0.06308561]
[1761239953561,0.36434011,110190.0,110180.0,0.01980561]
[1761239954257,0.36434011,110190.0,110180.0,0.04028561]
[1761239954757,0.2012433,110190.0,110180.0,0.04028561]
[1761239955156,0.2012433,110190.0,110180.0,0.15282811]
[1761239955353,0.2012433,110190.0,110180.0,0.14982811]
[1761239955560,0.2012433,110190.0,110180.0,0.15082811]
[1761239956377,0.2012433,110190.0,110180.0,0.14982811]
[1761239956559,0.2012433,110190.0,110180.0,0.15282811]
[1761239957363,0.2012433,110190.0,110180.0,0.16653811]
[1761239958175,0.04825,110190.0,110180.0,0.37045923]
[1761239958472,0.1389843,110190.0,110180.0,0.16653811]
[1761239959267,0.04825,110190.0,110180.0,0.16653811]
[1761239959468,0.0970891,110190.0,110180.0,0.37045923]
[1761239959671,0.02627,110190.0,110180.0,0.37045923]
[1761239960171,0.0048,110190.0,110180.0,0.37045923]
[1761239960370,0.0292651,110190.0,110180.0,0.37045923]
[1761239961178,0.0488391,110200.0,110190.0,0.1467241]
[1761239961467,0.0488391,110210.0,110200.0,0.1034359]
[1761239961670,0.0922891,110210.0,110200.0,0.36404263]
[1761239962178,0.1830068,110210.0,110200.0,0.36404263]
[1761239962570,0.0922891,110210.0,110200.0,0.36404263]
[1761239962875,0.04345,110210.0,110200.0,0.36404263]
[1761239963079,0.04345,110210.0,110200.0,0.36644263]
[1761239963271,0.04345,110210.0,110200.0,0.36744263]
[1761239963466,0.07037529,110210.0,110200.0,0.36744263]
[1761239963665,0.04890529,110210.0,110200.0,0.36744263]
[1761239963969,0.07092529,110210.0,110200.0,0.36744263]
[1761239964170,0.07092508,110210.0,110200.0,0.36744263]
[1761239964574,0.18386278,110210.0,110200.0,0.36744263]
[1761239964979,0.18386278,110210.0,110200.0,0.16426753]
[1761239965279,0.1349577,110210.0,110200.0,0.18868498]
[1761239966182,0.1349577,110210.0,110200.0,0.3926061]
[1761239966478,0.1349577,110210.0,110200.0,0.18868498]
[1761239966679,0.1487377,110210.0,110200.0,0.18868498]
[1761239967079,0.75265882,110210.0,110200.0,0.01755163]
[1761239967982,0.75265882,110210.0,110200.0,0.0034]
[1761239968187,0.75265882,110210.0,110200.0,0.01724625]
[1761239968889,0.1482343,110190.0,110180.0,0.02441745]
[1761239969591,0.1482343,110190.0,110180.0,0.06884745]
[1761239970491,0.1482343,110190.0,110180.0,0.06984745]
[1761239970687,0.1482343,110190.0,110180.0,0.17357985]
[1761239970893,0.1482343,110190.0,110180.0,0.20913645]
[1761239972489,0.1482343,110190.0,110180.0,0.11839405]
[1761239972694,0.1482343,110190.0,110180.0,0.08583745]
[1761239972896,0.1482343,110190.0,110180.0,0.184719]
[1761239974595,0.1482343,110190.0,110180.0,0.171729]
[1761239975095,0.1482343,110190.0,110180.0,0.19602552]
[1761239975892,0.1482343,110190.0,110180.0,0.10528312]
[1761239977086,0.1482343,110190.0,110180.0,0.19602552]
[1761239977389,0.1482343,110190.0,110180.0,0.20901552]
[1761239977584,0.04372,110190.0,110180.0,0.71160012]
[1761239977786,0.1344542,110190.0,110180.0,0.76045263]
[1761239978494,0.04372,110190.0,110180.0,0.76045263]
[1761239978688,0.1344543,110190.0,110180.0,0.76045263]
[1761239978889,0.04372,110190.0,110180.0,0.76045263]
[1761239979089,0.1482321,110200.0,110190.0,0.1481543]
[1761239979296,0.1344521,110200.0,110190.0,0.40874199]
[1761239979793,0.04372,110200.0,110190.0,0.40874199]
[1761239979997,0.134446,110200.0,110190.0,0.20482087]
[1761239980692,0.134446,110200.0,110190.0,0.17243997]
[1761239980893,0.134446,110200.0,110190.0,0.1855129]
[1761239981081,0.04372,110200.0,110190.0,0.1855129]
[1761239981285,0.04372,110200.0,110190.0,0.38943402]
[1761239981485,0.134446,110200.0,110190.0,0.38943402]
[1761239982598,0.134446,110200.0,110190.0,0.1855129]
[1761239982989,0.04372,110200.0,110190.0,0.38943402]
[1761239983292,0.1482226,110210.0,110200.0,0.05742]
[1761239983488,0.1482226,110210.0,110200.0,0.07049293]
[1761239983693,0.1482226,110210.0,110200.0,0.16121893]
[1761239983990,0.1482226,110210.0,110200.0,0.05750293]
[1761239984493,0.14944077,110210.0,110200.0,0.05750293]
[1761239984892,0.14974361,110210.0,110200.0,0.05750293]
[1761239985990,0.75366473,110210.0,110200.0,0.01407293]
[1761239986388,1.07654473,110210.0,110200.0,0.01407293]
[1761239986897,1.19885197,110210.0,110200.0,0.01407293]
[1761239988794,1.07653195,110210.0,110200.0,0.01407293]
[1761239990198,1.07653195,110210.0,110200.0,0.0383586]
[1761239993003,1.07653195,110210.0,110200.0,0.01407293]
[1761239994400,0.54974361,110210.0,110200.0,0.01407293]
[1761239994597,0.87258361,110210.0,110200.0,0.0835286]
[1761239994900,1.07649195,110210.0,110200.0,0.01407293]
[1761239996202,1.12539703,110210.0,110200.0,0.01407293]
[1761239997596,1.12539703,110210.0,110200.0,0.001]
[1761240000904,0.92148869,110210.0,110200.0,0.001]
[1761240001104,1.12539703,110210.0,110200.0,0.001]
[1761240002905,1.36194465,110210.0,110200.0,1e-07]
[1761240003098,1.32930537,110210.0,110200.0,1e-07]
[1761240004105,1.12539703,110210.0,110200.0,1e-07]
[1761240004306,1.15803024,110210.0,110200.0,1e-07]
[1761240004602,0.38628516,110210.0,110200.0,1e-07]
[1761240004807,0.70904516,110210.0,110200.0,1e-07]
[1761240006708,0.84690403,110210.0,110200.0,1e-07]
[1761240007605,0.89580911,110210.0,110200.0,1e-07]
[1761240008307,1.29580911,110210.0,110200.0,1e-07]
[1761240009700,0.89580911,110210.0,110200.0,1e-07]
[1761240010504,0.84690403,110210.0,110200.0,1e-07]
[1761240010712,0.71716954,110210.0,110200.0,1e-07]
[1761240011508,0.71716954,110210.0,110200.0,0.1358261]
[1761240011509,0.14974361,110210.0,110200.0,0.1358261]
[1761240012213,0.14974361,110210.0,110200.0,0.16011177]
[1761240013310,0.14974361,110210.0,110200.0,0.17309177]
[1761240014311,0.14974361,110210.0,110200.0,0.08236577]
[1761240014612,0.14974361,110210.0,110200.0,0.06938567]
[1761240014805,0.14974361,110210.0,110200.0,0.16011157]
[1761240015112,0.14974361,110210.0,110200.0,0.17309157]
[1761240015309,0.13596361,110210.0,110200.0,0.17309157]
[1761240016001,0.13596361,110210.0,110200.0,0.33621921]
[1761240016714,0.13596361,110210.0,110200.0,0.73621921]
[1761240017006,0.00152101,110210.0,110200.0,0.73621921]
[1761240017201,0.1332963,110220.0,110210.0,0.1487978]
[1761240017407,0.1332963,110220.0,110210.0,0.31192544]
[1761240017804,0.1460878,110210.0,110200.0,0.06938567]
[1761240018112,0.1332978,110210.0,110200.0,0.17309167]
[1761240018601,0.1332978,110210.0,110200.0,0.33621931]
[1761240019215,0.1332978,110210.0,110200.0,0.25467574]
[1761240019613,0.1332978,110210.0,110200.0,0.0915481]
[1761240019912,0.30921544,110210.0,110200.0,0.06938567]
[1761240020112,0.1460962,110200.0,110190.0,0.06938567]
[1761240020308,0.30922384,110200.0,110190.0,0.06938567]
[1761240020809,0.81054574,110200.0,110190.0,0.02428567]
[1761240021006,0.1461045,110190.0,110180.0,0.05666657]
[1761240021205,0.1461045,110190.0,110180.0,0.07978657]
[1761240021413,0.1461045,110190.0,110180.0,0.10180812]
[1761240022114,0.1461045,110190.0,110180.0,0.06942722]
[1761240027010,0.1461045,110190.0,110180.0,0.02312]
[1761240028319,0.1461045,110190.0,110180.0,0.04501]
[1761240028519,0.1122945,110190.0,110180.0,0.17389992]
[1761240028818,0.1339545,110190.0,110180.0,0.17389992]
[1761240029220,0.1478645,110190.0,110180.0,0.17389992]
[1761240029623,0.1478645,110190.0,110180.0,0.08315722]
[1761240029814,0.1478645,110190.0,110180.0,0.17389972]
[1761240031125,0.1478645,110190.0,110180.0,0.1495725]
[1761240031420,0.1478645,110190.0,110180.0,0.17689972]
[1761240031619,0.1478645,110190.0,110180.0,0.07233722]
[1761240031825,0.1478645,110190.0,110180.0,0.1387525]
[1761240032416,0.1478645,110190.0,110180.0,0.003]
[1761240032617,0.48967404,110190.0,110180.0,0.003]
[1761240032820,0.1354525,110180.0,110170.0,0.18161651]
[1761240033025,0.1493625,110180.0,110170.0,0.18161651]
[1761240033423,0.1493625,110180.0,110170.0,0.15728929]
[1761240033726,0.1493625,110180.0,110170.0,0.08509959]
[1761240034227,0.1493625,110180.0,110170.0,0.09891959]
[1761240034930,0.1493625,110180.0,110170.0,0.18967049]
[1761240035117,0.1493625,110180.0,110170.0,0.2139671]
[1761240035318,0.1493625,110180.0,110170.0,0.2169671]
[1761240035716,0.1493625,110180.0,110170.0,0.2031471]
[1761240036629,0.1493625,110180.0,110170.0,0.1123962]
[1761240036831,0.1493625,110180.0,110170.0,0.02729661]
[1761240037130,0.49117204,110180.0,110170.0,0.003]
[1761240037724,0.1493625,110180.0,110170.0,0.04651]
[1761240038730,0.1493625,110180.0,110170.0,0.003]
[1761240039531,0.1493625,110180.0,110150.0,1e-08]
[1761240039532,0.1493792,110160.0,110150.0,1e-08]
[1761240039721,0.1493956,110140.0,110130.0,9e-08]
[1761240039920,0.81376514,110140.0,110130.0,9e-08]
[1761240040223,0.1355021,110120.0,110110.0,0.05733]
[1761240040825,0.04471,110120.0,110110.0,0.5481303]
[1761240041032,0.1355021,110120.0,110110.0,0.06653528]
[1761240041432,0.1355021,110120.0,110110.0,0.07053528]
[1761240041632,0.1355021,110120.0,110110.0,0.16133558]
[1761240041832,0.1355021,110120.0,110110.0,0.16433558]
[1761240045438,0.1354967,110130.0,110120.0,0.1481221]
[1761240045634,0.0907839,110130.0,110120.0,0.1481221]
[1761240046027,0.1354909,110140.0,110130.0,0.1262236]
[1761240046232,0.1354909,110140.0,110130.0,0.1481136]
[1761240046546,0.01391,110150.0,110140.0,0.1481055]
[1761240046547,0.1493912,110150.0,110140.0,0.1481055]
[1761240046837,0.1354773,110150.0,110140.0,0.1481055]
[1761240047233,0.1354773,110150.0,110140.0,0.05733]
[1761240047431,0.1354773,110150.0,110140.0,0.1481053]
[1761240047635,0.1493873,110150.0,110140.0,0.1481053]
[1761240048032,0.1354773,110150.0,110140.0,0.1481053]
[1761240048233,0.02305,110150.0,110140.0,0.1511053]
[1761240048640,0.1138171,110150.0,110140.0,0.1511053]
[1761240050037,0.1354735,110160.0,110150.0,0.1045871]
[1761240050241,0.1354735,110160.0,110150.0,0.1480971]
[1761240051441,0.1354735,110160.0,110150.0,0.4707371]
[1761240052439,0.1493835,110160.0,110150.0,0.4707371]
[1761240052635,0.1354735,110160.0,110150.0,0.4707371]
[1761240053240,0.1480735,110160.0,110150.0,0.4707371]
[1761240053846,0.1480735,110160.0,110150.0,0.4707372]
[1761240054146,0.1477372,110150.0,110140.0,0.4724697]
[1761240054538,0.1477372,110150.0,110140.0,0.3817]
[1761240054840,0.1477372,110150.0,110140.0,0.0591]
[1761240055046,0.1477372,110150.0,110140.0,0.3817]
[1761240055347,0.1477372,110150.0,110140.0,0.4724755]
[1761240055743,0.1477372,110150.0,110140.0,0.4754755]
[1761240056643,0.02255,110150.0,110140.0,0.4754755]
[1761240056838,0.1477335,110160.0,110150.0,0.1360472]
[1761240057037,0.1477335,110160.0,110150.0,0.1489472]
[1761240057238,0.1351335,110160.0,110150.0,0.1489472]
[1761240057846,0.1477335,110160.0,110150.0,0.04528]
[1761240058447,0.1477335,110160.0,110150.0,0.1360473]
[1761240058843,0.1477335,110160.0,110150.0,0.1489473]
[1761240061147,0.1477373,110150.0,110140.0,0.136049]
[1761240061348,0.1477373,110150.0,110140.0,0.458649]
[1761240061945,0.1477373,110150.0,110140.0,0.471549]
[1761240062145,0.1351373,110150.0,110140.0,0.471549]
[1761240062347,0.1351335,110160.0,110150.0,0.1360473]
[1761240062651,0.1351335,110160.0,110150.0,0.1489473]
[1761240070757,0.35173916,110160.0,110150.0,0.04528]
[1761240070960,0.0126,110150.0,110140.0,0.05494051]
[1761240071160,0.1477454,110140.0,110130.0,0.53947091]
[1761240071355,0.35175106,110140.0,110130.0,0.46158721]
[1761240071555,0.35175106,110140.0,110130.0,0.08088721]
[1761240071755,0.35175106,110140.0,110130.0,0.03239051]
[1761240072462,0.35175106,110140.0,110130.0,0.03339051]
[1761240073959,0.35175106,110140.0,110130.0,0.03639051]
[1761240075165,0.35175106,110140.0,110130.0,0.004]
[1761240076767,0.35175106,110140.0,110130.0,0.02655]
[1761240076966,0.35175106,110140.0,110130.0,0.004]
[1761240079371,0.1477454,110140.0,110130.0,0.1400637]
[1761240079569,0.1351454,110140.0,110130.0,0.18535421]
[1761240081271,0.1477454,110140.0,110130.0,0.18535421]
[1761240082669,0.1477454,110140.0,110130.0,0.09457051]
[1761240082974,0.1477454,110140.0,110130.0,0.18535421]
[1761240083472,0.1477454,110140.0,110130.0,0.08167051]
[1761240083868,0.35175106,110140.0,110130.0,0.03639051]
[1761240084176,0.35175106,110140.0,110130.0,0.004]
[1761240087981,0.1475138,110130.0,110120.0,0.03239051]
[1761240088282,0.147522,110120.0,110110.0,0.08088721]
[1761240088577,0.0908002,110110.0,110100.0,0.00454112]
[1761240088776,0.1475302,110110.0,110100.0,0.04968112]
[1761240088988,0.35153586,110110.0,110100.0,0.06307605]
[1761240090286,0.35153586,110110.0,110100.0,0.06707605]
[1761240090487,0.35153586,110110.0,110100.0,0.04000645]
[1761240090786,0.67405586,110110.0,110100.0,0.01254112]
[1761240091582,0.67405586,110110.0,110100.0,0.05768112]
[1761240093388,0.67405586,110110.0,110100.0,0.14848942]
[1761240093590,0.4700502,110110.0,110100.0,0.14848942]
[1761240093890,0.1475302,110110.0,110100.0,0.16165942]
[1761240095786,0.1475302,110110.0,110100.0,0.05768112]
[1761240096483,0.1475302,110110.0,110100.0,0.14848942]
[1761240096795,0.1349302,110110.0,110100.0,0.16165942]
[1761240097589,0.1349302,110110.0,110100.0,0.56165942]
[1761240097897,0.35153586,110110.0,110100.0,0.01254112]
[1761240098694,0.35153586,110110.0,110100.0,0.03509112]
[1761240098995,0.35153586,110110.0,110100.0,0.14848952]
[1761240098996,0.1475302,110110.0,110100.0,0.14848952]
[1761240099594,0.1475302,110110.0,110100.0,0.05768112]
[1761240099899,0.35153586,110110.0,110100.0,0.05768112]
[1761240100188,0.35153586,110110.0,110100.0,0.14848952]
[1761240100885,0.35153586,110110.0,110100.0,0.05768112]
[1761240101392,0.35153586,110110.0,110100.0,0.14848952]
[1761240102188,0.1475302,110110.0,110100.0,0.14848952]
[1761240104288,0.1475302,110110.0,110100.0,0.16165952]
[1761240104993,0.1475302,110110.0,110100.0,0.05568112]
[1761240105198,0.67405586,110110.0,110100.0,0.01054112]
[1761240105492,0.67405586,110110.0,110100.0,0.05568112]
[1761240106100,0.67405586,110110.0,110100.0,0.04968112]
[1761240106287,0.4700502,110110.0,110100.0,0.04968112]
[1761240106594,0.4700502,110110.0,110100.0,0.14048942]
[1761240106794,0.4700502,110110.0,110100.0,0.14148942]
[1761240107793,0.1505302,110110.0,110100.0,0.05068112]
[1761240108895,0.31390102,110110.0,110100.0,0.05068112]
[1761240109398,0.31390102,110110.0,110100.0,0.14148942]
[1761240110096,0.31390102,110110.0,110100.0,0.31803024]
[1761240110289,0.31390102,110110.0,110100.0,0.15465942]
[1761240111195,0.31090102,110110.0,110100.0,0.15665942]
[1761240112189,0.31090102,110110.0,110100.0,0.15565942]
[1761240113399,0.1349302,110110.0,110100.0,0.31903024]
[1761240113595,0.20750082,110110.0,110100.0,0.31903024]
[1761240113899,0.04413,110110.0,110100.0,0.50667183]
[1761240114196,0.04413,110110.0,110100.0,0.34330101]
[1761240114493,0.04413,110110.0,110100.0,0.50667183]
[1761240114899,0.13493,110110.0,110100.0,0.82915183]
[1761240115092,0.13493,110110.0,110100.0,0.86154234]
[1761240115995,0.13493,110110.0,110100.0,0.69817152]
[1761240116196,0.31098082,110110.0,110100.0,0.48924019]
[1761240116402,0.31098082,110110.0,110100.0,0.07595189]
[1761240116895,0.31098082,110110.0,110100.0,0.03081189]
[1761240117102,0.63342082,110110.0,110100.0,0.03081189]
[1761240117297,0.63342082,110110.0,110100.0,0.02881189]
[1761240118193,1.22123663,110110.0,110100.0,0.0612024]
[1761240118390,1.22123663,110110.0,110100.0,0.06132199]
[1761240118595,1.25386984,110110.0,110100.0,0.02893148]
[1761240118795,1.13139752,110110.0,110100.0,0.02893148]
[1761240119195,0.73139752,110110.0,110100.0,0.02893148]
[1761240120102,0.73139752,110110.0,110100.0,0.02993148]
[1761240120604,0.69876431,110110.0,110100.0,0.02993148]
[1761240121098,0.69876431,110110.0,110100.0,0.14317988]
[1761240121304,0.69876431,110110.0,110100.0,0.07387148]
[1761240121601,0.49449499,110110.0,110100.0,0.07287148]
[1761240121794,0.49449499,110110.0,110100.0,0.16367988]
[1761240125004,0.48181499,110110.0,110100.0,0.17715988]
[1761240125401,0.48181499,110110.0,110100.0,0.20955039]
[1761240125705,0.15937499,110110.0,110100.0,0.20955039]
[1761240126003,0.17205499,110110.0,110100.0,0.20955039]
[1761240126595,0.17205499,110110.0,110100.0,0.06132199]
[1761240126798,0.37632431,110110.0,110100.0,0.02893148]
[1761240126999,0.37632431,110110.0,110100.0,0.16367988]
[1761240127200,0.17205499,110110.0,110100.0,0.07287148]
[1761240127600,0.37632431,110110.0,110100.0,0.07287148]
[1761240127802,0.80895752,110110.0,110090.0,0.05686541]
[1761240128001,0.67476772,110100.0,110090.0,0.05686541]
[1761240128210,0.69921271,110100.0,110090.0,0.0244749]
[1761240128793,0.84649277,110100.0,110090.0,0.0244749]
[1761240129103,0.83740449,110100.0,110090.0,0.0244749]
[1761240129800,0.83740449,110100.0,110090.0,0.0264749]
[1761240130603,0.4704984,110100.0,110090.0,0.0704149]
[1761240130806,0.05729,110100.0,110090.0,0.18371175]
[1761240130999,0.1480984,110100.0,110090.0,0.09289505]
[1761240131199,0.1480984,110100.0,110090.0,0.03547505]
[1761240131402,0.4905595,110100.0,110090.0,0.03547505]
[1761240131602,0.8159595,110100.0,110090.0,0.02446109]
[1761240132301,0.4704984,110100.0,110090.0,0.11527769]
[1761240132495,0.4704984,110100.0,110090.0,0.13771769]
[1761240132695,0.4704984,110100.0,110090.0,0.1701082]
[1761240133100,0.4704984,110100.0,110090.0,0.0792916]
[1761240133300,0.4704984,110100.0,110090.0,0.04690109]
[1761240133509,0.4704984,110100.0,110090.0,0.06840109]
[1761240134004,0.4704984,110100.0,110090.0,0.15921759]
[1761240134907,0.49494339,110100.0,110090.0,0.13484104]
[1761240135808,0.1480984,110100.0,110090.0,0.17269759]
[1761240136911,0.05729,110100.0,110090.0,0.17269759]
[1761240137110,0.1354183,110100.0,110090.0,0.17269759]
[1761240137811,0.1480983,110100.0,110090.0,0.17269759]
[1761240138213,0.1354183,110100.0,110090.0,0.17269759]
[1761240143319,0.1354183,110100.0,110090.0,0.49509759]
[1761240143521,0.1354183,110100.0,110090.0,0.5274881]
[1761240143721,0.04461,110100.0,110090.0,0.5274881]
[1761240144218,0.04461,110100.0,110090.0,0.50311155]
[1761240145319,0.04461,110100.0,110090.0,0.50611155]
[1761240146322,0.04461,110100.0,110090.0,0.53046839]
[1761240146514,0.04461,110100.0,110090.0,0.53146839]
[1761240147418,0.02444499,110110.0,110100.0,0.0908083]
[1761240147620,0.0570782,110120.0,110110.0,0.14863]
[1761240147923,0.02444499,110120.0,110110.0,0.8134511]
[1761240148120,0.02444499,110120.0,110110.0,0.83781054]
[1761240148515,0.03263321,110130.0,110120.0,0.1486219]
[1761240148516,0.0570782,110130.0,110120.0,0.1486219]
[1761240148718,0.0570782,110130.0,110120.0,0.491083]
[1761240149412,0.0570782,110130.0,110120.0,0.891083]
[1761240149617,0.02444499,110130.0,110120.0,0.891083]
[1761240149922,0.02444499,110130.0,110120.0,0.5496219]
[1761240150527,0.02444499,110130.0,110120.0,0.5526219]
[1761240151418,0.06870499,110130.0,110120.0,0.5526219]
[1761240152014,0.15948859,110130.0,110120.0,0.8749419]
[1761240152326,0.15948859,110130.0,110120.0,0.5526219]
[1761240152624,0.06870499,110130.0,110120.0,0.8749019]
[1761240153915,0.02444499,110130.0,110120.0,0.8749019]
[1761240154225,0.06712499,110130.0,110120.0,0.8749019]
[1761240156415,0.04571499,110130.0,110120.0,0.8749019]
[1761240156617,0.02444499,110130.0,110120.0,0.8749019]
[1761240157723,0.06712499,110130.0,110120.0,0.8749019]
[1761240158626,0.06712499,110130.0,110120.0,0.5526219]
[1761240158927,0.06712499,110130.0,110120.0,1.03813574]
[1761240159320,0.02444499,110130.0,110120.0,1.03813574]
[1761240159521,0.04571499,110130.0,110120.0,1.03813574]
[1761240161829,0.04571499,110130.0,110120.0,1.03809574]
[1761240162330,0.02444499,110130.0,110120.0,1.03809574]
[1761240163231,0.02444499,110130.0,110120.0,0.63809574]
[1761240165122,0.06712499,110130.0,110120.0,0.4748219]
[1761240165328,0.06712499,110130.0,110120.0,0.63809574]
[1761240165630,0.02444499,110130.0,110120.0,0.63809574]
[1761240168327,0.13649859,110130.0,110120.0,0.63809574]
[1761240168535,0.04571499,110130.0,110120.0,0.63809574]
[1761240168726,0.15790859,110130.0,110120.0,0.1526219]
[1761240168924,0.35381564,110130.0,110120.0,0.4747819]
[1761240169527,0.32118243,110130.0,110120.0,0.1526219]
[1761240169828,0.35381564,110130.0,110120.0,0.4747819]